bitfinex/quotes_SOLUSD_20240717
["timestamp","ask_amount","ask_price","bid_price","bid_amount"]
[1721179399439,0.17,163.37,163.3,6.1235]
[1721179399597,6.899566,163.39,163.33,6.1224]
[1721179399793,6.899566,163.39,163.34,1.22425252]
[1721179400223,0.603366,163.38,163.31,21.4312]
[1721179400607,0.603366,163.38,163.31,22.65549124]
[1721179400797,0.603366,163.38,163.32,6.1228]
[1721179400994,0.603366,163.38,163.33,1.22428741]
[1721179401194,6.2962,163.39,163.33,7.34648741]
[1721179401429,6.654866,163.43,163.34,6.122]
[1721179401611,0.603366,163.42,163.35,1.22407893]
[1721179401920,0.603366,163.42,163.36,1.22407943]
[1721179402525,6.654866,163.43,163.36,1.22407943]
[1721179402703,0.603366,163.42,163.37,1.22398251]
[1721179402903,0.603366,163.42,163.34,7.34580368]
[1721179403216,6.0515,163.43,163.37,6.1207]
[1721179403419,6.654866,163.43,163.35,15.3037]
[1721179403598,6.654866,163.43,163.36,6.1213]
[1721179403800,6.0515,163.43,163.37,1.22395882]
[1721179404212,0.603366,163.42,163.35,21.4254]
[1721179404500,6.654866,163.43,163.36,7.34537427]
[1721179404731,0.603366,163.42,163.36,1.22397427]
[1721179405311,6.654866,163.43,163.37,6.1209]
[1721179405501,6.654866,163.43,163.38,1.22395693]
[1721179405728,6.1064,163.47,163.38,7.34455693]
[1721179405907,0.603366,163.46,163.38,7.34455693]
[1721179406323,12.2237,163.47,163.38,11.22395693]
[1721179406324,6.1064,163.47,163.38,11.22395693]
[1721179406628,6.1064,163.47,163.42,6.1188]
[1721179406829,6.1064,163.47,163.43,1.22355224]
[1721179407039,15.4792,163.49,163.43,6.1187]
[1721179407248,12.5786,163.52,163.44,1.22344191]
[1721179407448,0.603366,163.51,163.44,1.22344191]
[1721179408230,0.603366,163.51,163.44,7.34154191]
[1721179409441,0.603366,163.51,163.44,1.22344191]
[1721179410122,0.603366,163.51,163.43,15.2964]
[1721179410426,0.17,163.5,163.43,15.2964]
[1721179410944,0.603366,163.49,163.39,15.2999]
[1721179411111,0.773366,163.48,163.41,6.1194]
[1721179411311,0.603366,163.48,163.42,1.22362345]
[1721179411513,0.17,163.47,163.39,15.2999]
[1721179411820,0.34,163.47,163.4,1.22376753]
[1721179412020,0.34,163.47,163.38,21.4216]
[1721179412222,18.73,163.47,163.35,16.3207]
[1721179412417,21.8019,163.44,163.35,6.1216]
[1721179412626,0.603366,163.43,163.35,6.1216]
[1721179412846,0.773366,163.42,163.34,15.3046]
[1721179413020,16.286866,163.44,163.36,1.22404206]
[1721179413213,0.34,163.45,163.39,6.1202]
[1721179413214,0.603366,163.45,163.39,6.1202]
[1721179413412,0.603366,163.45,163.39,1.22380534]
[1721179413845,0.603366,163.45,163.4,1.22385603]
[1721179414009,0.603366,163.45,163.37,6.121]
[1721179414229,0.34,163.44,163.35,15.3043]
[1721179414561,0.603366,163.43,163.35,21.426]
[1721179414760,0.943366,163.42,163.36,1.22408215]
[1721179415053,0.603366,163.42,163.36,7.34538215]
[1721179415277,0.34,163.41,163.35,15.3043]
[1721179415436,0.603366,163.4,163.35,16.52846338]
[1721179415959,0.603366,163.43,163.37,6.1207]
[1721179416763,0.603366,163.42,163.35,21.4258]
[1721179416968,0.603366,163.42,163.36,1.22410776]
[1721179417256,0.603366,163.45,163.4,6.1199]
[1721179417466,6.4713,163.46,163.44,6.1183]
[1721179417634,6.4713,163.46,163.43,6.1187]
[1721179418056,0.603366,163.47,163.44,6.1183]
[1721179418259,6.5609,163.5,163.45,6.118]
[1721179418563,6.5609,163.5,163.46,6.1174]
[1721179418762,6.5609,163.54,163.48,6.1169]
[1721179418939,6.5609,163.54,163.47,21.4096]
[1721179419127,6.5609,163.54,163.47,15.2924]
[1721179419351,0.603366,163.53,163.47,15.2924]
[1721179419752,0.603366,163.53,163.45,6.1177]
[1721179420143,0.34,163.52,163.45,6.1177]
[1721179420764,0.34,163.53,163.46,6.1176]
[1721179420935,0.34,163.53,163.44,15.296]
[1721179421330,0.943366,163.53,163.44,15.296]
[1721179421840,0.943366,163.53,163.45,6.1177]
[1721179422935,0.943366,163.53,163.44,21.4143]
[1721179423351,18.39,163.52,163.42,6.1191]
[1721179423564,19.333366,163.51,163.42,6.1191]
[1721179423741,19.333366,163.51,163.43,1.22357492]
[1721179423939,19.333366,163.51,163.42,7.34247654]
[1721179424241,19.333366,163.51,163.43,16.51987747]
[1721179424449,0.34,163.51,163.43,21.4151]
[1721179424658,0.603366,163.5,163.4,16.5232773]
[1721179424867,0.603366,163.5,163.42,6.1191]
[1721179424868,0.34,163.49,163.42,6.1191]
[1721179425056,0.603366,163.48,163.42,6.1191]
[1721179425230,0.603366,163.48,163.4,15.2997]
[1721179425231,0.34,163.47,163.4,15.2997]
[1721179425432,0.603366,163.46,163.4,15.2997]
[1721179425960,0.603366,163.46,163.41,6.1194]
[1721179427244,0.603366,163.45,163.4,21.4196]
[1721179427441,7.118166,163.45,163.4,15.2997]
[1721179427758,0.34,163.44,163.4,15.2997]
[1721179427947,0.603366,163.43,163.37,15.3025]
[1721179428153,0.943366,163.42,163.37,15.3025]
[1721179428476,0.17,163.41,163.33,6.1222]
[1721179428768,0.34,163.41,163.33,6.1222]
[1721179429199,0.34,163.42,163.33,6.1222]
[1721179429377,24.8492,163.42,163.33,6.1222]
[1721179429569,0.603366,163.41,163.33,6.1222]
[1721179429767,0.34,163.4,163.32,6.1228]
[1721179430079,0.603366,163.39,163.32,6.1228]
[1721179430283,0.34,163.38,163.32,6.1228]
[1721179430794,0.603366,163.37,163.33,7.34685891]
[1721179431891,0.34,163.38,163.32,7.34715995]
[1721179432193,0.943366,163.38,163.32,6.1228]
[1721179432391,6.5647,163.37,163.25,10.0]
[1721179432691,0.943366,163.36,163.26,1.22461279]
[1721179432937,0.603366,163.35,163.29,6.124]
[1721179433201,0.603366,163.35,163.28,1.22456307]
[1721179433380,0.17,163.34,163.29,1.22467485]
[1721179433578,0.603366,163.35,163.27,15.3112]
[1721179433781,0.603366,163.35,163.3,6.1236]
[1721179434205,0.603366,163.35,163.29,6.124]
[1721179434418,0.34,163.36,163.3,16.53378828]
[1721179434419,0.773366,163.36,163.3,16.53378828]
[1721179434594,0.603366,163.36,163.3,22.65738828]
[1721179434997,0.943366,163.35,163.27,15.3117]
[1721179435217,0.943366,163.35,163.28,6.1244]
[1721179435422,0.943366,163.35,163.24,15.3147]
[1721179435596,0.943366,163.35,163.25,1.22471208]
[1721179435597,6.1226,163.33,163.25,1.22471208]
[1721179435914,0.943366,163.32,163.25,1.22471208]
[1721179436093,0.943366,163.32,163.24,15.3147]
[1721179436509,0.943366,163.32,163.22,6.3740623]
[1721179436740,15.4397,163.31,163.23,6.1263]
[1721179437053,0.943366,163.3,163.23,6.1263]
[1721179437334,0.603366,163.29,163.24,7.35089553]
[1721179437723,15.4397,163.31,163.24,1.22499553]
[1721179437923,15.4397,163.31,163.25,21.4385]
[1721179438313,0.603366,163.3,163.25,21.4385]
[1721179438515,15.4397,163.31,163.25,21.4385]
[1721179438719,15.4397,163.31,163.26,7.34986847]
[1721179438942,15.4397,163.31,163.25,21.4385]
[1721179439235,15.4397,163.31,163.26,1.22482885]
[1721179439645,15.4397,163.31,163.27,7.34941405]
[1721179439942,15.4397,163.31,163.27,1.22481405]
[1721179440242,15.4397,163.31,163.28,15.3108]
[1721179440455,15.4397,163.31,163.27,1.22481405]
[1721179440764,0.603366,163.35,163.28,1.22468687]
[1721179441045,0.603366,163.35,163.27,1.22453634]
[1721179441214,15.5475,163.36,163.29,1.22453634]
[1721179441415,0.603366,163.35,163.3,1.22446662]
[1721179441616,0.603366,163.35,163.29,1.22454322]
[1721179441818,16.150866,163.36,163.3,1.22454322]
[1721179442116,16.150866,163.36,163.29,1.22446082]
[1721179442117,0.603366,163.35,163.29,1.22446082]
[1721179442342,15.5475,163.36,163.3,1.22455071]
[1721179442531,15.5475,163.36,163.29,6.1239]
[1721179442833,0.603366,163.35,163.3,1.22440059]
[1721179443437,0.603366,163.35,163.29,1.22453516]
[1721179443637,0.603366,163.35,163.3,1.22454989]
[1721179444012,0.603366,163.35,163.28,21.4349]
[1721179444213,0.603366,163.35,163.29,7.34824207]
[1721179444436,0.603366,163.35,163.3,1.2245271]
[1721179445244,0.34,163.34,163.27,1.22478916]
[1721179445826,6.4622,163.34,163.26,1.22470021]
[1721179446030,0.603366,163.33,163.26,1.22470021]
[1721179446236,0.17,163.32,163.26,1.22470021]
[1721179446436,0.773366,163.32,163.26,1.22470021]
[1721179446720,0.17,163.32,163.27,1.22478256]
[1721179446916,0.603366,163.33,163.27,1.22478256]
[1721179447333,15.5475,163.36,163.26,40.6245]
[1721179447639,16.150866,163.36,163.27,15.3118]
[1721179447817,15.5475,163.36,163.3,6.1236]
[1721179448020,16.150866,163.36,163.29,15.3094]
[1721179448229,15.5475,163.36,163.29,15.3094]
[1721179448638,15.5475,163.36,163.28,6.1241]
[1721179450444,15.5475,163.36,163.28,15.3103]
[1721179450647,16.650866,163.36,163.31,6.1231]
[1721179451049,15.5475,163.36,163.3,15.3086]
[1721179451256,16.650866,163.36,163.31,1.22445693]
[1721179451436,15.5475,163.36,163.31,7.34765693]
[1721179451630,15.5475,163.36,163.31,1.22445693]
[1721179451867,6.5647,163.37,163.34,6.1221]
[1721179452155,6.5647,163.37,163.35,1.22416965]
[1721179452753,16.3867,163.4,163.35,16.52866965]
[1721179452932,16.3867,163.4,163.36,1.22402351]
[1721179454648,17.490066,163.4,163.32,15.3069]
[1721179454859,1.103366,163.39,163.32,15.3069]
[1721179455151,1.273366,163.39,163.31,6.1231]
[1721179455336,1.273366,163.39,163.33,7.3464041]
[1721179455540,1.273366,163.39,163.28,15.3107]
[1721179455753,7.393966,163.39,163.3,6.1235]
[1721179455962,7.393966,163.39,163.21,55.40176262]
[1721179455963,6.2706,163.37,163.25,15.3137]
[1721179456262,1.443366,163.36,163.26,1.22468762]
[1721179456435,16.5963,163.35,163.23,1.2248189]
[1721179456639,7.565666,163.34,163.24,7.35061766]
[1721179456943,7.565666,163.34,163.19,15.3194]
[1721179456944,6.1244,163.29,163.19,15.3194]
[1721179457151,1.103366,163.28,163.19,15.3194]
[1721179457452,1.103366,163.28,163.19,21.4468]
[1721179457652,1.103366,163.28,163.2,6.1273]
[1721179457953,0.17,163.27,163.19,21.4472]
[1721179458144,0.17,163.27,163.19,15.3194]
[1721179458145,0.34,163.27,163.19,15.3194]
[1721179458343,0.34,163.27,163.2,1.2251792]
[1721179458544,1.443366,163.27,163.21,1.2251698]
[1721179458753,0.34,163.27,163.21,1.2251698]
[1721179458956,1.443366,163.28,163.23,6.1262]
[1721179459165,1.443366,163.28,163.17,10.0]
[1721179459337,1.443366,163.28,163.19,21.4468]
[1721179459539,1.443366,163.28,163.19,22.67197818]
[1721179459737,1.443366,163.28,163.2,6.1272]
[1721179459949,1.103366,163.3,163.21,11.22513961]
[1721179460152,1.103366,163.29,163.23,6.1262]
[1721179460353,7.373966,163.32,163.25,6.1252]
[1721179460552,6.2706,163.32,163.26,7.34955488]
[1721179460760,6.2706,163.32,163.27,22.66137002]
[1721179460963,6.2706,163.32,163.27,16.53657002]
[1721179461143,6.2706,163.32,163.24,15.3146]
[1721179461348,6.2706,163.32,163.26,15.3123]
[1721179461542,6.2706,163.32,163.27,1.2247043]
[1721179461737,6.2706,163.32,163.23,1.22477299]
[1721179461944,6.2706,163.32,163.24,1.22473686]
[1721179462154,6.2706,163.32,163.24,6.1259]
[1721179462752,6.2706,163.32,163.25,1.2246902]
[1721179463364,6.2706,163.32,163.26,15.3121]
[1721179463551,6.2706,163.32,163.27,1.22460801]
[1721179463736,6.2706,163.32,163.23,21.4416]
[1721179463935,6.2706,163.32,163.23,15.3156]
[1721179464135,7.373966,163.32,163.24,6.1258]
[1721179464364,7.373966,163.32,163.25,6.1255]
[1721179464562,7.373966,163.32,163.24,6.1259]
[1721179465148,7.373966,163.32,163.23,15.3156]
[1721179465149,1.103366,163.31,163.23,15.3156]
[1721179465664,1.103366,163.31,163.24,1.22478509]
[1721179465869,6.2706,163.32,163.25,7.35028181]
[1721179466076,6.2706,163.32,163.26,15.3128]
[1721179466459,6.2706,163.32,163.25,6.1252]
[1721179466766,6.2706,163.32,163.23,55.9467]
[1721179466767,6.2706,163.32,163.26,6.1251]
[1721179467067,6.2706,163.32,163.27,1.22471164]
[1721179467567,6.2706,163.32,163.26,1.22471688]
[1721179467864,7.373966,163.32,163.27,1.22478085]
[1721179468048,7.373966,163.32,163.25,1.22477916]
[1721179468670,0.17,163.31,163.22,21.4431]
[1721179468962,1.103366,163.3,163.22,15.3166]
[1721179469271,1.103366,163.29,163.22,15.3166]
[1721179469439,1.273366,163.31,163.22,15.3166]
[1721179469763,0.17,163.3,163.23,7.35109324]
[1721179469970,0.34,163.3,163.24,1.22495153]
[1721179470674,0.34,163.3,163.22,21.4432]
[1721179471159,0.34,163.3,163.21,6.1269]
[1721179471373,6.4638,163.3,163.21,6.1269]
[1721179471572,1.103366,163.29,163.22,1.22505579]
[1721179471955,1.103366,163.29,163.22,7.35165579]
[1721179472668,6.2706,163.32,163.24,10.0]
[1721179472873,6.2706,163.32,163.31,21.4316]
[1721179473090,6.655,163.36,163.29,6.1237]
[1721179473666,6.655,163.36,163.3,1.22446438]
[1721179473874,6.655,163.36,163.3,7.34806438]
[1721179474247,6.655,163.36,163.31,6.1232]
[1721179474453,6.655,163.36,163.32,1.22438605]
[1721179474662,6.655,163.36,163.26,15.3126]
[1721179475073,6.1222,163.34,163.24,6.1258]
[1721179475270,1.103366,163.33,163.24,10.0]
[1721179475462,1.103366,163.32,163.25,21.4385]
[1721179475670,1.273366,163.34,163.25,21.4385]
[1721179476165,1.273366,163.34,163.27,6.1247]
[1721179476473,1.273366,163.34,163.26,6.1251]
[1721179476773,1.273366,163.34,163.27,1.22471503]
[1721179476960,0.17,163.33,163.25,21.4385]
[1721179477345,0.17,163.33,163.26,1.22471913]
[1721179477580,0.34,163.34,163.27,1.22464076]
[1721179477957,0.34,163.34,163.27,7.34904076]
[1721179478182,1.443366,163.34,163.27,7.34904076]
[1721179478356,1.103366,163.34,163.28,6.1243]
[1721179478678,1.103366,163.34,163.24,35.3147]
[1721179479182,1.103366,163.34,163.27,6.1247]
[1721179479383,1.103366,163.34,163.28,1.22459905]
[1721179479966,1.103366,163.34,163.25,6.1253]
[1721179480579,7.225566,163.34,163.25,6.1253]
[1721179480788,0.17,163.33,163.25,6.1253]
[1721179480962,0.17,163.33,163.24,15.3147]
[1721179481164,0.34,163.33,163.24,15.3147]
[1721179481468,6.1603,163.32,163.24,15.3147]
[1721179481658,1.103366,163.31,163.24,15.3147]
[1721179482202,0.17,163.3,163.24,15.3147]
[1721179482363,1.273366,163.3,163.24,15.3147]
[1721179483160,1.273366,163.3,163.25,1.22492389]
[1721179483489,0.17,163.3,163.25,1.22492389]
[1721179484600,1.103366,163.29,163.24,15.3147]
[1721179484760,1.103366,163.29,163.23,6.1262]
[1721179485079,1.103366,163.29,163.24,1.22495173]
[1721179485565,1.103366,163.29,163.23,6.1262]
[1721179485888,1.273366,163.3,163.24,1.2249535]
[1721179486377,1.273366,163.3,163.23,6.1262]
[1721179486570,0.17,163.29,163.19,16.37097163]
[1721179486768,0.17,163.29,163.23,6.1262]
[1721179487079,1.273366,163.3,163.24,7.35095666]
[1721179487386,0.17,163.29,163.23,6.1262]
[1721179487587,1.273366,163.3,163.25,6.1254]
[1721179487759,1.103366,163.31,163.26,1.22491779]
[1721179487956,1.103366,163.31,163.26,7.35001779]
[1721179488980,1.103366,163.31,163.26,6.1251]
[1721179489161,6.1603,163.32,163.27,1.22478147]
[1721179489371,6.1603,163.32,163.28,6.1241]
[1721179490076,6.1603,163.32,163.29,7.34859923]
[1721179490279,6.1603,163.32,163.3,1.22459641]
[1721179490578,6.1603,163.32,163.3,7.34819811]
[1721179490790,16.5963,163.35,163.3,7.34819811]
[1721179492086,6.0516,163.36,163.3,7.34819811]
[1721179492598,6.0516,163.36,163.33,6.1225]
[1721179492806,16.052,163.39,163.35,6.1214]
[1721179493095,6.0516,163.4,163.36,7.3453725]
[1721179493301,6.0516,163.4,163.36,1.2240725]
[1721179493494,6.0516,163.4,163.36,7.3453725]
[1721179493799,6.0516,163.4,163.35,15.3036]
[1721179494007,16.052,163.43,163.36,1.22393926]
[1721179494184,6.5512,163.45,163.41,6.1194]
[1721179494390,6.5512,163.45,163.4,1.22373177]
[1721179494589,6.5512,163.45,163.4,7.34333177]
[1721179495085,6.5512,163.45,163.4,1.22373177]
[1721179495294,6.5512,163.49,163.41,25.2982]
[1721179495504,6.5512,163.49,163.42,7.3422071]
[1721179495809,1.103366,163.48,163.38,10.0]
[1721179496102,1.103366,163.48,163.4,6.1198]
[1721179496309,6.5512,163.49,163.41,1.22359705]
[1721179496479,6.5512,163.49,163.43,6.1184]
[1721179496801,1.103366,163.48,163.42,15.2972]
[1721179497679,1.103366,163.48,163.42,21.4163]
[1721179498090,1.103366,163.48,163.42,15.2972]
[1721179498286,1.103366,163.48,163.42,16.52074029]
[1721179498476,1.103366,163.48,163.42,15.2972]
[1721179499503,0.34,163.47,163.41,6.1195]
[1721179499701,0.34,163.47,163.4,15.299]
[1721179500011,0.17,163.47,163.41,7.34320141]
[1721179500310,0.34,163.48,163.42,6.119]
[1721179500493,0.34,163.48,163.4,15.299]
[1721179500808,39.833366,163.48,163.38,6.1206]
[1721179501196,21.443366,163.48,163.39,1.22383325]
[1721179501390,21.443366,163.48,163.4,1.22372311]
[1721179501706,21.443366,163.48,163.41,1.22372535]
[1721179502505,18.39,163.47,163.41,1.22372535]
[1721179502689,21.443366,163.48,163.38,21.4211]
[1721179502690,1.443366,163.46,163.38,21.4211]
[1721179502897,1.273366,163.45,163.38,15.3008]
[1721179503114,1.103366,163.45,163.39,1.22376427]
[1721179503410,1.273366,163.46,163.4,1.223829]
[1721179503616,1.103366,163.46,163.4,1.223829]
[1721179504504,1.273366,163.47,163.4,1.223829]
[1721179504696,7.654566,163.49,163.41,1.22372512]
[1721179504931,6.5512,163.49,163.45,6.118]
[1721179505291,1.103366,163.48,163.43,21.4154]
[1721179505492,1.103366,163.48,163.44,1.22349397]
[1721179505693,7.654566,163.49,163.44,1.22349397]
[1721179506227,1.103366,163.48,163.41,6.1195]
[1721179506600,1.103366,163.48,163.4,15.2995]
[1721179506901,0.34,163.47,163.41,7.34307495]
[1721179507098,0.17,163.47,163.41,7.34307495]
[1721179507292,0.34,163.47,163.4,21.4193]
[1721179507493,0.17,163.47,163.4,21.4193]
[1721179507704,0.17,163.47,163.41,1.22372235]
[1721179507912,0.34,163.48,163.41,1.22372235]
[1721179508311,7.560266,163.48,163.4,16.52321822]
[1721179508520,1.443366,163.48,163.4,16.52321822]
[1721179508824,1.443366,163.48,163.41,7.34319513]
[1721179509332,1.443366,163.48,163.41,1.22369513]
[1721179509697,1.443366,163.48,163.4,21.4194]
[1721179510008,1.443366,163.48,163.41,1.22372512]
[1721179510415,1.443366,163.48,163.42,6.1191]
[1721179510919,1.443366,163.48,163.41,1.22372512]
[1721179510920,1.443366,163.48,163.41,1.22361964]
[1721179511103,7.654566,163.49,163.43,15.2968]
[1721179511307,6.5512,163.49,163.43,15.2968]
[1721179511518,1.103366,163.48,163.4,15.2995]
[1721179511719,1.103366,163.48,163.41,7.34314346]
[1721179512028,1.103366,163.48,163.42,6.119]
[1721179512223,1.103366,163.48,163.43,1.22359476]
[1721179512407,1.103366,163.48,163.43,1.22355138]
[1721179512596,6.5512,163.49,163.44,1.22356791]
[1721179512792,1.103366,163.48,163.43,1.22347099]
[1721179513196,1.103366,163.48,163.43,1.22359747]
[1721179514018,1.103366,163.48,163.42,15.2974]
[1721179514409,1.103366,163.48,163.42,21.4165]
[1721179514800,0.17,163.47,163.42,15.2974]
[1721179515005,1.103366,163.46,163.39,16.52396036]
[1721179515213,1.103366,163.45,163.36,15.3034]
[1721179515546,23.1554,163.44,163.32,25.3065]
[1721179515726,1.273366,163.43,163.33,1.22412753]
[1721179515931,1.273366,163.42,163.33,1.22412753]
[1721179516226,1.273366,163.42,163.33,6.1222]
[1721179516227,0.17,163.41,163.33,6.1222]
[1721179516408,0.17,163.41,163.31,15.308]
[1721179516409,0.34,163.41,163.31,15.308]
[1721179516611,6.4596,163.41,163.32,6.1229]
[1721179517431,1.103366,163.4,163.32,6.1229]
[1721179517733,1.443366,163.39,163.33,7.34680724]
[1721179517904,0.17,163.38,163.33,7.34680724]
[1721179519027,1.103366,163.41,163.34,6.1218]
[1721179519238,0.34,163.4,163.34,6.1218]
[1721179519645,0.34,163.4,163.34,1.22417142]
[1721179520619,1.103366,163.39,163.33,15.3056]
[1721179520916,1.103366,163.39,163.19,31.66933219]
[1721179520917,6.2638,163.37,163.3,21.4321]
[1721179521114,16.681066,163.36,163.27,15.3117]
[1721179521445,1.273366,163.35,163.29,6.1239]
[1721179522138,1.273366,163.35,163.3,1.22458423]
[1721179522942,1.273366,163.35,163.28,1.22458292]
[1721179523113,1.273366,163.35,163.29,6.1239]
[1721179523320,1.273366,163.35,163.3,1.22458161]
[1721179523750,1.273366,163.35,163.29,1.22458374]
[1721179525652,0.17,163.34,163.3,1.22458549]
[1721179525868,0.17,163.34,163.29,6.1239]
[1721179525869,1.273366,163.35,163.29,16.53398169]
[1721179526021,1.103366,163.33,163.28,1.22458169]
[1721179526221,1.103366,163.33,163.25,1.2247044]
[1721179526431,1.273366,163.34,163.28,6.1244]
[1721179526637,1.273366,163.34,163.27,6.1245]
[1721179526822,0.17,163.33,163.28,7.34909482]
[1721179527023,0.17,163.33,163.28,1.22469482]
[1721179527327,0.17,163.33,163.29,6.1239]
[1721179527531,1.103366,163.34,163.3,1.22467194]
[1721179527842,1.103366,163.35,163.3,7.34827194]
[1721179528043,1.103366,163.35,163.3,1.22467194]
[1721179528955,1.103366,163.35,163.29,6.1239]
[1721179529156,1.103366,163.35,163.28,21.4351]
[1721179529333,1.103366,163.35,163.29,1.22458098]
[1721179529660,1.103366,163.35,163.28,15.3108]
[1721179529955,0.34,163.34,163.28,15.3108]
[1721179530157,1.103366,163.33,163.28,15.3108]
[1721179530369,1.273366,163.32,163.25,15.3136]
[1721179530670,1.273366,163.32,163.24,6.1259]
[1721179530671,6.5631,163.3,163.24,6.1259]
[1721179530822,16.3423,163.28,163.22,6.36297163]
[1721179531032,16.3423,163.28,163.23,1.22504727]
[1721179531033,17.445666,163.28,163.23,1.22504727]
[1721179531224,17.445666,163.28,163.24,1.22504633]
[1721179531935,17.445666,163.28,163.23,1.22504621]
[1721179532129,16.3423,163.28,163.23,1.22504621]
[1721179532329,16.3423,163.28,163.24,1.22504691]
[1721179532958,16.3423,163.28,163.24,7.35094691]
[1721179533155,16.3423,163.28,163.23,6.1263]
[1721179533338,16.3423,163.28,163.24,1.22504593]
[1721179533735,16.3423,163.28,163.23,7.35134687]
[1721179534055,16.3423,163.28,163.23,1.22504687]
[1721179534227,1.103366,163.27,163.23,1.22504687]
[1721179534434,1.103366,163.27,163.21,15.317]
[1721179534660,1.103366,163.27,163.21,21.4439]
[1721179535262,1.103366,163.27,163.22,6.1266]
[1721179537246,1.103366,163.27,163.23,6.1262]
[1721179537928,1.103366,163.27,163.24,6.1258]
[1721179539269,16.3423,163.28,163.21,15.317]
[1721179539270,6.5631,163.3,163.27,6.1248]
[1721179539432,6.5631,163.3,163.28,6.1244]
[1721179541734,6.5631,163.3,163.27,7.3494657]
[1721179542135,6.5631,163.3,163.27,1.2247657]
[1721179542357,6.5631,163.3,163.27,7.3494657]
[1721179543266,6.5631,163.3,163.28,6.1243]
[1721179543568,15.7619,163.33,163.29,1.22465727]
[1721179543772,15.7619,163.33,163.29,1.22458267]
[1721179544068,15.7619,163.33,163.3,1.22459918]
[1721179544268,15.7619,163.33,163.28,6.1244]
[1721179544572,15.7619,163.33,163.29,1.22458385]
[1721179545371,15.7619,163.33,163.19,6.35807053]
[1721179545372,6.1249,163.27,163.19,6.35807053]
[1721179545669,0.17,163.26,163.17,25.3209]
[1721179545844,6.4653,163.26,163.17,25.3209]
[1721179546040,1.103366,163.25,163.17,25.3209]
[1721179546239,1.103366,163.25,163.17,31.4492]
[1721179546571,1.103366,163.25,163.18,6.1281]
[1721179547149,1.103366,163.24,163.17,21.4494]
[1721179547351,6.4652,163.26,163.14,10.8402016]
[1721179547352,1.273366,163.23,163.14,0.8402016]
[1721179547564,1.103366,163.23,163.14,0.8402016]
[1721179547872,7.229966,163.23,163.14,6.9698016]
[1721179548241,1.103366,163.22,163.15,6.1293]
[1721179548752,1.103366,163.23,163.15,6.1293]
[1721179548957,22.5512,163.25,163.17,10.0]
[1721179549157,22.5512,163.25,163.2,6.1274]
[1721179549380,22.5512,163.25,163.21,1.22515993]
[1721179549559,6.1362,163.25,163.2,6.1274]
[1721179549767,6.1362,163.25,163.2,15.3177]
[1721179549970,24.296566,163.29,163.2,15.3177]
[1721179550165,23.1932,163.29,163.2,15.3177]
[1721179550368,1.103366,163.28,163.2,15.3177]
[1721179550876,1.103366,163.28,163.21,6.127]
[1721179551453,1.103366,163.28,163.2,15.3177]
[1721179552267,1.103366,163.28,163.21,1.22510409]
[1721179552466,1.103366,163.28,163.21,7.35210409]
[1721179553697,1.103366,163.28,163.21,6.127]
[1721179553991,1.103366,163.28,163.2,21.445]
[1721179554188,7.227766,163.28,163.2,15.3177]
[1721179554576,1.103366,163.28,163.17,21.4492]
[1721179554762,0.34,163.27,163.18,6.1281]
[1721179555061,7.568466,163.27,163.18,6.1281]
[1721179556188,6.1257,163.25,163.17,15.321]
[1721179556486,1.443366,163.24,163.17,21.4495]
[1721179556692,1.103366,163.23,163.17,21.4495]
[1721179557188,1.103366,163.23,163.17,15.321]
[1721179557479,1.103366,163.23,163.18,1.22543118]
[1721179558362,1.443366,163.24,163.18,1.22543118]
[1721179558567,1.103366,163.24,163.18,1.22543118]
[1721179558884,1.103366,163.25,163.17,15.321]
[1721179559181,1.103366,163.25,163.18,7.35340198]
[1721179560589,1.103366,163.28,163.21,6.127]